bitfinex-derivatives/quotes_SOLF0:USTF0_20250630
["timestamp","ask_amount","ask_price","bid_price","bid_amount"]
[1751253984615,5.24584881,151.75,151.66,12.63831038]
[1751253984616,3.05593554,151.71,151.66,8.32917588]
[1751253984813,3.05593554,151.71,151.66,2.1586]
[1751253985209,5.2723,151.69,151.66,7.4316]
[1751253985814,5.2723,151.69,151.67,5.2727]
[1751253986110,5.2719,151.7,151.67,5.2727]
[1751253988616,5.2721,151.69,151.67,5.2727]
[1751253988817,3.05593554,151.71,151.66,7.4316]
[1751253989817,5.2723,151.69,151.66,7.4316]
[1751253990316,3.05593554,151.71,151.64,6.17057588]
[1751253990513,3.05593554,151.69,151.61,2.2175]
[1751253990919,5.2735,151.65,151.62,5.2743]
[1751253995625,3.05593554,151.7,151.63,35.39593554]
[1751253996125,5.273,151.67,151.64,5.2735]
[1751253998326,5.2725,151.68,151.65,5.2734]
[1751253998721,3.05593554,151.7,151.63,35.39593554]
[1751253998922,5.2729,151.67,151.64,5.2737]
[1751253999122,3.05593554,151.7,151.64,5.2737]
[1751253999425,5.273,151.67,151.64,5.2737]
[1751254001427,5.273,151.67,151.65,5.2734]
[1751254001626,5.2725,151.68,151.65,5.2734]
[1751254003530,5.2728,151.67,151.65,5.2734]
[1751254003828,5.2728,151.67,151.64,8.32953554]
[1751254006434,5.2732,151.66,151.63,37.614]
[1751254007228,5.2729,151.67,151.64,5.2738]
[1751254010632,5.2731,151.66,151.64,5.2738]
[1751254011325,5.2731,151.66,151.63,37.6139]
[1751254012530,3.05593554,151.67,151.63,32.34]
[1751254012732,3.05593554,151.68,151.63,32.34]
[1751254012922,5.2732,151.66,151.63,37.6141]
[1751254017933,5.2732,151.66,151.63,39.57265258]
[1751254018728,5.2732,151.66,151.63,37.6141]
[1751254018933,7.23145258,151.67,151.64,5.2738]
[1751254019333,7.23145258,151.67,151.64,7.23235258]
[1751254021328,7.23145258,151.67,151.64,5.2738]
[1751254021531,5.2731,151.66,151.64,5.2738]
[1751254021731,1.95855258,151.67,151.64,5.2738]
[1751254021935,1.95855258,151.67,151.64,7.23235258]
[1751254022132,32.34,151.72,151.64,7.23235258]
[1751254022133,1.95855258,151.68,151.64,7.23235258]
[1751254022531,1.95855258,151.68,151.65,5.2732]
[1751254022732,1.95855258,151.68,151.65,7.23175258]
[1751254022935,1.95855258,151.69,151.65,7.23175258]
[1751254023333,5.2726,151.68,151.65,7.23175258]
[1751254023739,7.23115258,151.68,151.65,7.23175258]
[1751254024240,5.2728,151.67,151.65,7.23175258]
[1751254024435,1.95855258,151.66,151.62,38.51057588]
[1751254024643,1.95855258,151.65,151.62,38.51057588]
[1751254024836,5.2741,151.63,151.62,38.51057588]
[1751254025040,5.2741,151.63,151.62,32.34]
[1751254025341,5.274,151.64,151.62,32.34]
[1751254025938,5.2741,151.63,151.62,32.34]
[1751254028644,5.2739,151.64,151.62,32.34]
[1751254029046,3.06134209,151.66,151.62,32.34]
[1751254029545,5.2745,151.62,151.6,6.17057588]
[1751254029746,3.06134209,151.64,151.6,6.17057588]
[1751254029946,5.2747,151.62,151.6,6.17057588]
[1751254031550,5.2748,151.61,151.6,6.17057588]
[1751254032348,5.2746,151.62,151.6,6.17057588]
[1751254034150,32.34,151.64,151.58,8.17521038]
[1751254034349,32.34,151.64,151.56,12.24255994]
[1751254034350,3.06134209,151.62,151.56,3.06134209]
[1751254034550,3.06134209,151.62,151.56,11.23655247]
[1751254034750,5.2755,151.6,151.57,5.276]
[1751254035443,5.2755,151.6,151.58,3.06134209]
[1751254036754,5.275,151.61,151.58,3.06134209]
[1751254037159,5.275,151.61,151.58,8.33714209]
[1751254037751,35.40134209,151.66,151.59,5.2753]
[1751254037951,35.40134209,151.66,151.58,3.06134209]
[1751254038349,5.2747,151.62,151.58,3.06134209]
[1751254039355,5.2747,151.62,151.59,5.2754]
[1751254039952,5.2741,151.63,151.6,5.275]
[1751254040157,5.2741,151.63,151.6,37.615]
[1751254040659,5.2739,151.64,151.61,5.2748]
[1751254040860,3.06134209,151.68,151.6,35.40134209]
[1751254041062,3.06134209,151.68,151.62,5.2745]
[1751254041759,5.2737,151.65,151.61,9.6657]
[1751254041961,5.2737,151.65,151.61,4.391]
[1751254042459,5.2738,151.64,151.61,9.6657]
[1751254042961,5.2735,151.65,151.62,5.2744]
[1751254043462,5.2735,151.65,151.62,8.33574209]
[1751254044259,5.2735,151.65,151.62,3.06134209]
[1751254044757,5.2735,151.65,151.61,9.6657]
[1751254044758,5.2739,151.64,151.61,12.72704209]
[1751254048865,5.2742,151.63,151.61,7.45234209]
[1751254049165,3.06134209,151.68,151.61,7.45234209]
[1751254049464,5.2738,151.64,151.61,12.72694209]
[1751254050666,5.2742,151.63,151.61,4.391]
[1751254051366,5.2739,151.64,151.61,9.6658]
[1751254054569,5.2739,151.64,151.62,5.2745]
[1751254054770,5.2739,151.64,151.61,4.391]
[1751254055161,5.2739,151.64,151.61,9.6656]
[1751254055772,5.2739,151.64,151.62,1.95888097]
[1751254057373,5.2739,151.64,151.62,7.23338097]
[1751254057773,5.2736,151.65,151.62,7.23338097]
[1751254058474,5.2736,151.65,151.63,1.95888097]
[1751254064981,5.2736,151.65,151.62,5.2745]
[1751254065183,5.2736,151.65,151.63,1.95888097]
[1751254066285,5.2736,151.65,151.62,7.23338097]
[1751254069883,5.2736,151.65,151.62,5.2745]
[1751254070089,5.2736,151.65,151.62,7.23338097]
[1751254071991,5.2736,151.65,151.63,1.95888097]
[1751254073691,5.2736,151.65,151.62,7.23338097]
[1751254076996,5.2736,151.65,151.63,1.95888097]
[1751254078585,5.2736,151.65,151.62,7.23338097]
[1751254078987,19.76,151.41,151.27,16.44187457]
[1751254079192,40.9785,151.64,151.24,42.66]
[1751254079193,86.16,151.43,151.24,42.66]
[1751254079395,86.26,151.43,151.25,2.2735]
[1751254079598,1.95903911,151.38,151.3,1.95903911]
[1751254079792,1.95903911,151.38,151.32,12.33137485]
[1751254079995,86.26,151.43,151.32,12.33137485]
[1751254079996,5.2835,151.36,151.32,44.61903911]
[1751254080201,5.65488424,151.35,151.34,12.33137485]
[1751254080595,8.06123676,151.45,151.34,14.29041396]
[1751254080797,8.95577616,151.44,151.41,14.29041396]
[1751254081002,8.95577616,151.43,151.41,42.66]
[1751254081198,8.95577616,151.42,151.33,2.3713]
[1751254081406,8.95577616,151.41,151.4,12.33137485]
[1751254081897,3.43020145,151.41,151.37,3.06972667]
[1751254082204,8.59530138,151.46,151.4,12.33137485]
[1751254082397,5.2813,151.43,151.41,42.66]
[1751254082803,8.69077146,151.43,151.41,42.66]
[1751254083103,3.40947146,151.42,151.41,42.66]
[1751254083305,3.40907285,151.45,151.41,42.66]
[1751254083601,3.40907285,151.44,151.42,12.33137485]
[1751254083806,3.40907285,151.47,151.43,6.75863237]
[1751254084003,3.40907285,151.46,151.44,6.75863237]
[1751254084205,6.10219765,151.51,151.45,6.75863237]
[1751254084504,3.06972667,151.48,151.46,13.3318384]
[1751254084705,233.0,151.53,151.41,45.72972667]
[1751254084706,3.25985672,151.47,151.41,45.72972667]
[1751254085008,3.25985672,151.46,151.45,12.33137485]
[1751254085206,3.25985672,151.5,151.46,12.33137485]
[1751254085410,3.25985672,151.49,151.47,25.65316352]
[1751254085709,5.279,151.49,151.48,13.32178867]
[1751254085911,8.53652311,151.49,151.48,13.32178867]
[1751254086204,11.60624978,151.49,151.48,13.32178867]
[1751254089208,11.60624978,151.49,151.48,6.57281757]
[1751254089412,8.53652311,151.49,151.48,6.57281757]
[1751254089612,11.60624978,151.49,151.48,6.57281757]
[1751254090916,8.34872667,151.49,151.48,13.29489292]
[1751254091508,11.60624978,151.49,151.48,13.29489292]
[1751254091812,8.34872667,151.49,151.48,13.29489292]
[1751254092211,5.279,151.49,151.48,13.29489292]
[1751254092412,5.2787,151.5,151.48,13.29489292]
[1751254092611,5.2787,151.5,151.49,13.29489292]
[1751254092812,11.221575,151.5,151.49,13.29489292]
[1751254093610,14.47909811,151.5,151.49,13.29489292]
[1751254093811,11.221575,151.5,151.49,6.57281757]
[1751254094006,14.47909811,151.5,151.49,6.57281757]
[1751254094206,11.221575,151.5,151.49,6.57281757]
[1751254094407,14.47909811,151.5,151.49,6.57281757]
[1751254104820,11.221575,151.5,151.49,6.57281757]
[1751254105323,14.31483424,151.5,151.49,6.57281757]
[1751254106224,14.31483424,151.5,151.49,6.4417615]
[1751254119134,14.31483424,151.5,151.46,5.28]
[1751254119442,5.2787,151.5,151.49,12.33137485]
[1751254119634,14.12021563,151.5,151.49,12.33137485]
[1751254119830,14.12021563,151.5,151.46,5.28]
[1751254120034,5.2787,151.5,151.49,12.33137485]
[1751254120234,14.12311458,151.5,151.49,12.33137485]
[1751254120436,14.12311458,151.5,151.46,5.28]
[1751254120740,5.2787,151.5,151.49,12.33137485]
[1751254120934,14.12960632,151.5,151.49,12.33137485]
[1751254121136,14.12960632,151.5,151.46,5.28]
[1751254121336,8.85157816,151.49,151.47,6.48555163]
[1751254121536,8.85157816,151.48,151.46,5.28]
[1751254121737,5.86211588,151.47,151.46,5.28]
[1751254121936,5.86211588,151.47,151.46,17.61137485]
[1751254122138,233.0,151.51,151.46,6.46925897]
[1751254122338,233.0,151.51,151.46,3.06587278]
[1751254122339,2.73945429,151.5,151.46,3.06587278]
[1751254122539,233.0,151.51,151.5,6.46925897]
[1751254122740,235.7396333,151.51,151.5,47.50925897]
[1751254123338,241.0179333,151.51,151.5,47.50925897]
[1751254127847,321.8783,151.51,151.5,47.50925897]
[1751254128052,324.30552361,151.51,151.5,47.50925897]
[1751254128249,319.02722361,151.51,151.5,47.50925897]
[1751254130261,235.42722361,151.51,151.5,47.50925897]
[1751254131060,233.0,151.51,151.5,47.50925897]
[1751254131456,233.0,151.51,151.5,52.78795897]
[1751254133158,233.0,151.51,151.5,47.50925897]
[1751254133856,233.0,151.51,151.5,52.78795897]
[1751254134063,83.34,151.52,151.5,52.78795897]
[1751254134260,5.59723555,151.51,151.5,46.3187]
[1751254134656,5.59723555,151.51,151.5,52.78795897]
[1751254137970,5.59723555,151.51,151.5,47.50925897]
[1751254140077,5.59723555,151.51,151.5,52.78795897]
[1751254140575,5.59723555,151.51,151.5,47.50925897]
[1751254143480,5.59723555,151.51,151.5,52.78795897]
[1751254143979,5.59723555,151.51,151.5,47.50925897]
[1751254148385,5.59723555,151.51,151.5,52.78795897]
[1751254148987,5.59723555,151.51,151.5,47.50925897]
[1751254152690,5.59723555,151.51,151.5,41.04]
[1751254152892,5.59723555,151.51,151.5,47.50925897]
[1751254156093,5.59723555,151.51,151.5,52.78795897]
[1751254159287,5.59723555,151.51,151.5,47.50925897]
[1751254162594,5.59723555,151.51,151.5,52.78795897]
[1751254167598,1.96217105,151.52,151.5,52.78795897]
[1751254169499,7.24017105,151.52,151.5,52.78795897]
[1751254170698,5.278,151.52,151.5,52.78795897]
[1751254170897,1.96217105,151.52,151.5,52.78795897]
[1751254172102,240.23997105,151.53,151.5,52.78795897]
[1751254172301,2.38908095,151.52,151.5,52.78795897]
[1751254172599,240.23997105,151.53,151.5,52.78795897]
[1751254172801,2.38926633,151.52,151.5,52.78795897]
[1751254172995,240.23997105,151.53,151.5,52.78795897]
[1751254173195,2.38926633,151.52,151.5,52.78795897]
[1751254173500,240.23997105,151.53,151.5,52.78795897]
[1751254173702,2.38948721,151.52,151.5,52.78795897]
[1751254173901,240.23997105,151.53,151.5,52.78795897]
[1751254174101,2.38948721,151.52,151.5,52.78795897]
[1751254174301,240.23997105,151.53,151.5,52.78795897]
[1751254174503,2.38977031,151.52,151.5,52.78795897]
[1751254174701,240.23989713,151.53,151.5,52.78795897]
[1751254174898,2.38977031,151.52,151.5,52.78795897]
[1751254175100,240.23989713,151.53,151.5,52.78795897]
[1751254175295,2.38975682,151.52,151.51,37.84]
[1751254186005,238.2769,151.55,151.52,5.2778]
[1751254186210,2.3869053,151.54,151.53,6.46925897]
[1751254186709,7.6643053,151.54,151.52,5.2779]
[1751254187008,5.2774,151.54,151.53,6.46925897]
[1751254187199,240.23849187,151.55,151.53,6.46925897]
[1751254187398,240.23849187,151.55,151.52,5.2779]
[1751254187607,1.96139187,151.54,151.53,6.46925897]
[1751254188304,240.23849187,151.55,151.52,5.2779]
[1751254188508,5.2773,151.54,151.53,6.46925897]
[1751254188705,5.2773,151.54,151.52,5.2779]
[1751254189006,7.23869187,151.54,151.53,6.46925897]
[1751254189405,7.23869187,151.54,151.52,5.2779]
[1751254189610,7.23869187,151.54,151.53,6.46925897]
[1751254190106,7.23869187,151.54,151.52,5.2779]
[1751254190307,7.23869187,151.54,151.53,6.46925897]
[1751254190804,7.23869187,151.54,151.52,5.2779]
[1751254191008,7.23869187,151.54,151.53,6.46925897]
[1751254191610,7.23869187,151.54,151.52,5.2779]
[1751254191906,7.23869187,151.54,151.53,6.46925897]
[1751254192516,7.23869187,151.54,151.52,5.2779]
[1751254192810,7.23869187,151.54,151.53,6.46925897]
[1751254193315,7.23869187,151.54,151.51,45.07949187]
[1751254193509,7.23869187,151.54,151.53,6.46925897]
[1751254193907,87.51869187,151.54,151.53,6.46925897]
[1751254194110,5.278,151.52,151.51,37.84]
[1751254194415,87.45939187,151.52,151.51,37.84]
[1751254196410,5.2783,151.51,151.49,7.4852]
[1751254196609,5.2783,151.51,151.5,36.58]
[1751254196912,5.2783,151.51,151.5,43.04925897]
[1751254197115,5.279,151.49,151.48,356.28]
[1751254197417,5.279,151.49,151.48,392.86]
[1751254197712,5.279,151.49,151.48,399.32925897]
[1751254199513,5.2788,151.5,151.48,399.32925897]
[1751254199713,5.2788,151.5,151.49,6.46925897]
[1751254202415,5.2788,151.5,151.49,43.04925897]
[1751254210914,238.2785,151.51,151.49,43.04925897]
[1751254211119,234.96139187,151.51,151.49,43.04925897]
[1751254211920,5.2787,151.5,151.49,43.04925897]
[1751254212616,5.2787,151.5,151.49,36.58]
[1751254212820,5.2787,151.5,151.49,43.04925897]
[1751254213517,233.0,151.51,151.49,43.04925897]
[1751254215222,238.2785,151.51,151.49,43.04925897]
[1751254215417,234.96139187,151.51,151.49,43.04925897]
[1751254215622,5.2787,151.5,151.49,43.04925897]
[1751254217930,240.23979187,151.51,151.49,43.04925897]
[1751254219228,238.2784,151.51,151.49,43.04925897]
[1751254219417,233.0,151.51,151.49,43.04925897]
[1751254219623,233.0,151.51,151.49,48.32815897]
[1751254222929,233.0,151.51,151.5,13.70935084]
[1751254223233,233.0,151.51,151.5,13.70976159]
[1751254223532,233.0,151.51,151.5,11.74795897]
[1751254224334,233.0,151.51,151.5,13.70976159]
[1751254225136,233.0,151.51,151.5,11.74795897]
[1751254225442,233.0,151.51,151.5,13.70989143]
[1751254225636,5.2778,151.53,151.5,13.70989143]
[1751254225940,84.6178,151.53,151.51,6.46925897]
[1751254226842,5.278,151.52,151.51,6.46925897]
[1751254231643,79.12,151.54,151.51,6.46925897]
[1751254231842,1.96193246,151.55,151.51,8.43119143]
[1751254232047,233.0,151.54,151.51,8.43119143]
[1751254232248,5.2778,151.53,151.51,8.43119143]
[1751254232543,5.2778,151.53,151.52,35.68]
[1751254232852,5.278,151.52,151.51,6.46925897]
[1751254233051,5.278,151.52,151.51,42.14925897]
[1751254233944,5.2777,151.53,151.51,42.14925897]
[1751254234350,5.278,151.52,151.51,42.14925897]
[1751254234549,234.96193246,151.54,151.51,42.14925897]
[1751254235047,5.2778,151.53,151.51,44.11119143]
[1751254235244,234.96193246,151.54,151.51,49.38949143]
[1751254235449,238.2776,151.54,151.51,44.11119143]
[1751254236044,238.2776,151.54,151.51,49.38949143]
[1751254236343,5.2778,151.53,151.51,44.11119143]
[1751254241552,5.2778,151.53,151.51,42.14925897]
[1751254243651,5.2778,151.53,151.52,6.46925897]
[1751254244256,5.2778,151.53,151.51,40.9583]
[1751254244456,5.2778,151.53,151.52,6.46925897]
[1751254245052,5.2778,151.53,151.51,35.68]
[1751254245353,5.2778,151.53,151.52,6.46925897]
[1751254246548,5.2778,151.53,151.51,35.68]
[1751254246853,5.2778,151.53,151.52,6.46925897]
[1751254247251,5.2778,151.53,151.51,35.68]
[1751254247550,5.2778,151.53,151.52,6.46925897]
[1751254249653,5.2778,151.53,151.51,35.68]
[1751254249953,240.23933246,151.54,151.52,6.46925897]
[1751254250253,234.96193246,151.54,151.52,6.46925897]
[1751254250450,234.96193246,151.54,151.51,42.92023246]
[1751254250651,234.96193246,151.54,151.52,6.46925897]
[1751254251454,234.96193246,151.54,151.51,40.9583]
[1751254251753,5.2776,151.53,151.52,6.46925897]
[1751254252152,5.2776,151.53,151.51,35.68]
[1751254252354,1.96193246,151.52,151.51,35.68]
[1751254252755,1.96266993,151.52,151.5,35.68]
[1751254252956,80.54266993,151.51,151.5,35.68]
[1751254253957,5.2787,151.5,151.47,7.24236993]
[1751254254152,5.2787,151.5,151.49,6.46925897]
[1751254254552,80.54266993,151.51,151.49,6.46925897]
[1751254255056,80.54266993,151.51,151.49,34.92]
[1751254255255,7.24136993,151.5,151.49,34.92]
[1751254255456,1.96266993,151.5,151.49,34.92]
[1751254255957,7.24136993,151.5,151.49,34.92]
[1751254256554,1.96297974,151.53,151.49,43.35223871]
[1751254256854,1.96297974,151.53,151.51,6.46925897]
[1751254256855,2.18662716,151.53,151.51,6.46925897]
[1751254257058,233.0,151.54,151.52,8.43223871]
[1751254257251,233.0,151.54,151.46,434.84]
[1751254257252,233.0,151.54,151.53,43.35223871]
[1751254257556,233.0,151.54,151.53,48.62983871]
[1751254257950,233.0,151.54,151.53,43.35223871]
[1751254259457,233.0,151.54,151.53,46.66685897]
[1751254260658,233.0,151.54,151.53,48.62983871]
[1751254260858,233.0,151.54,151.53,46.66685897]
[1751254263259,233.0,151.54,151.53,41.38925897]
[1751254264861,233.0,151.54,151.53,46.66685897]
[1751254265362,233.0,151.54,151.53,48.62983871]
[1751254267262,233.0,151.54,151.53,41.38925897]
[1751254270164,233.0,151.54,151.53,46.66685897]
[1751254271864,233.0,151.54,151.53,41.38925897]
[1751254272664,233.0,151.54,151.53,34.92]
[1751254272966,233.0,151.54,151.53,41.38925897]
[1751254275260,233.0,151.54,151.53,43.35223871]
[1751254278268,233.0,151.54,151.53,41.38925897]
[1751254278467,234.96297974,151.54,151.46,362.47093941]
[1751254278664,101.93549526,151.58,151.46,362.47093941]
[1751254278665,1.96297974,151.5,151.48,6.46925897]
[1751254279166,7.24197974,151.5,151.48,6.46925897]
[1751254279470,5.279,151.5,151.48,6.46925897]
[1751254282167,5.279,151.49,151.48,6.46925897]
[1751254283275,5.2788,151.5,151.48,6.46925897]
[1751254285067,85.60147974,151.51,151.48,11.74855897]
[1751254285274,80.32297974,151.51,151.48,6.46925897]
[1751254286671,5.2787,151.5,151.48,6.46925897]
[1751254290180,5.2787,151.5,151.48,8.43223871]
[1751254290883,5.2787,151.5,151.48,6.46925897]
[1751254291084,5.2787,151.5,151.48,8.43223871]
[1751254291981,5.2787,151.5,151.48,6.46925897]
[1751254295285,80.32297974,151.51,151.48,6.46925897]
[1751254295482,78.36,151.51,151.48,6.46925897]
[1751254295784,80.32297974,151.51,151.48,6.46925897]
[1751254295982,5.2789,151.5,151.48,6.46925897]
[1751254299487,85.60137974,151.51,151.48,11.74845897]
[1751254299689,233.0,151.5,151.48,13.71143871]
[1751254302090,233.0,151.5,151.49,6.46925897]
[1751254302494,233.0,151.5,151.48,7.24217974]
[1751254302786,233.0,151.5,151.49,6.46925897]
[1751254303302,233.0,151.5,151.48,7.24217974]
[1751254303501,233.0,151.5,151.49,6.46925897]
[1751254303902,233.0,151.5,151.48,7.24217974]
[1751254304100,233.0,151.5,151.49,6.46925897]
[1751254304601,233.0,151.5,151.48,1.96297974]
[1751254304804,233.0,151.5,151.49,6.46925897]
[1751254305204,233.0,151.5,151.48,1.96297974]
[1751254305404,233.0,151.5,151.49,6.46925897]
[1751254305905,233.0,151.5,151.48,1.96297974]
[1751254306105,233.0,151.5,151.49,6.46925897]
[1751254306494,233.0,151.5,151.48,1.96297974]
[1751254306699,233.0,151.5,151.49,6.46925897]
[1751254307702,233.0,151.5,151.48,1.96297974]
[1751254307904,233.0,151.5,151.49,6.46925897]
[1751254308503,233.0,151.5,151.48,1.96297974]
[1751254308702,233.0,151.5,151.49,6.46925897]
[1751254309201,233.0,151.5,151.48,1.96297974]
[1751254309401,233.0,151.5,151.49,6.46925897]
[1751254309807,233.0,151.5,151.48,1.96297974]
[1751254310005,233.0,151.5,151.49,6.46925897]
[1751254310395,233.0,151.5,151.48,1.96297974]
[1751254310600,233.0,151.5,151.49,6.46925897]
[1751254311806,233.0,151.5,151.48,1.96297974]
[1751254312009,233.0,151.5,151.49,6.46925897]
[1751254312408,233.0,151.5,151.48,1.96297974]
[1751254312609,233.0,151.5,151.49,6.46925897]
[1751254313107,233.0,151.5,151.48,1.96297974]
[1751254313307,233.0,151.5,151.49,6.46925897]
[1751254313707,233.0,151.5,151.48,1.96297974]
[1751254314008,233.0,151.5,151.49,6.46925897]
[1751254314410,233.0,151.5,151.48,7.24227974]
[1751254314609,233.0,151.5,151.49,6.46925897]
[1751254315413,233.0,151.5,151.48,7.24227974]
[1751254315609,233.0,151.5,151.49,6.46925897]
[1751254316008,233.0,151.5,151.48,7.24227974]
[1751254316205,233.0,151.5,151.49,6.46925897]
[1751254316610,233.0,151.5,151.48,7.24227974]
[1751254316813,233.0,151.5,151.49,6.46925897]
[1751254317314,233.0,151.5,151.48,7.24227974]
[1751254317520,233.0,151.5,151.49,6.46925897]
[1751254317911,233.0,151.5,151.48,7.24227974]
[1751254318213,233.0,151.5,151.49,6.46925897]
[1751254318608,233.0,151.5,151.48,7.24227974]
[1751254318814,233.0,151.5,151.49,6.46925897]
[1751254319414,233.0,151.5,151.48,7.24227974]
[1751254319615,233.0,151.5,151.49,6.46925897]
[1751254320114,233.0,151.5,151.48,7.24227974]
[1751254320314,233.0,151.5,151.49,6.46925897]
[1751254320809,233.0,151.5,151.48,7.24227974]
[1751254321010,233.0,151.5,151.49,6.46925897]
[1751254321411,233.0,151.5,151.48,7.24227974]
[1751254321614,233.0,151.5,151.49,6.46925897]
[1751254321816,88.96957553,151.5,151.49,13.71123871]
[1751254322117,6.10219765,151.57,151.49,13.71123871]
[1751254322118,78.3,151.55,151.49,8.43223871]
[1751254322315,78.3,151.56,151.53,1.96297974]
[1751254322613,80.26297974,151.56,151.54,34.68]
[1751254323210,68.93255527,151.57,151.54,34.68]
[1751254323416,66.96957553,151.57,151.55,1.96297974]
[1751254323613,66.96957553,151.57,151.56,1.96297974]
[1751254323816,1.96297974,151.61,151.56,8.43223871]
[1751254324016,1.96297974,151.61,151.56,6.46925897]
[1751254324017,78.3,151.6,151.56,6.46925897]
[1751254324219,80.26297974,151.6,151.56,8.43223871]
[1751254324408,5.2761,151.58,151.56,8.43223871]
[1751254330721,5.2761,151.58,151.56,13.70883871]
[1751254330917,5.2755,151.59,151.57,8.43223871]
[1751254331124,5.2755,151.59,151.58,34.68]
[1751254343933,5.2755,151.59,151.58,43.11223871]
[1751254345535,5.2749,151.61,151.58,48.38793871]
[1751254345724,5.2749,151.61,151.6,1.96297974]
[1751254345930,66.96957553,151.62,151.6,8.43223871]
[1751254346133,5.2744,151.63,151.61,8.43223871]
[1751254346330,5.2744,151.63,151.62,41.02925897]
[1751254346730,5.2744,151.63,151.62,34.56]
[1751254347123,5.2744,151.63,151.62,36.52297974]
[1751254350729,5.2739,151.64,151.62,36.52297974]
[1751254350936,5.2739,151.64,151.63,6.46925897]
[1751254351336,5.2739,151.64,151.62,36.52297974]
[1751254351537,5.2739,151.64,151.63,6.46925897]
[1751254351938,5.2739,151.64,151.62,36.52297974]
[1751254352238,5.2739,151.64,151.63,6.46925897]
[1751254352937,5.2739,151.64,151.62,36.52297974]
[1751254353138,5.2739,151.64,151.63,6.46925897]
[1751254353633,5.2739,151.64,151.62,36.52297974]
[1751254353940,5.2739,151.64,151.63,6.46925897]
[1751254354334,5.2739,151.64,151.62,36.52297974]
[1751254354536,5.2739,151.64,151.63,8.43223871]
[1751254354937,5.2739,151.64,151.63,6.46925897]
[1751254355137,5.2739,151.64,151.63,8.43223871]
[1751254359343,1.96297974,151.67,151.63,8.43223871]
[1751254359546,68.93255527,151.68,151.65,6.46925897]
[1751254359844,68.93255527,151.68,151.66,34.56]
[1751254360543,5.2727,151.67,151.66,34.56]
[1751254361744,7.23567974,151.67,151.66,34.56]
[1751254362342,1.96297974,151.67,151.61,5.2746]
[1751254362546,1.96297974,151.65,151.63,6.46925897]
[1751254362946,5.274,151.64,151.63,6.46925897]
[1751254364343,5.2744,151.63,151.6,1.96297974]
[1751254364544,5.2744,151.63,151.61,34.56]
[1751254364744,5.2744,151.63,151.62,6.46925897]
[1751254365049,7.23737974,151.63,151.62,6.46925897]
[1751254365243,7.23737974,151.63,151.61,34.56]
[1751254365244,5.2745,151.62,151.61,34.56]
[1751254365646,5.2745,151.62,151.61,41.02925897]
[1751254367252,66.96957553,151.67,151.61,42.99223871]
[1751254367452,1.96297974,151.65,151.62,6.46925897]
[1751254368451,1.96297974,151.64,151.62,6.46925897]
[1751254368646,5.2741,151.63,151.62,6.46925897]
[1751254376065,5.2739,151.64,151.62,8.43223871]
[1751254376264,5.2739,151.64,151.63,6.46925897]
[1751254376763,5.2739,151.64,151.62,1.96297974]
[1751254376966,5.2739,151.64,151.63,6.46925897]
[1751254377464,5.2741,151.63,151.62,1.96297974]
[1751254377666,5.2741,151.63,151.61,41.79767974]
[1751254377858,5.2741,151.63,151.62,6.46925897]
[1751254383969,5.2745,151.62,151.61,34.56]
[1751254388579,5.2745,151.62,151.61,34.44]
[1751254392878,2.20274714,151.65,151.61,42.8689638]
[1751254393079,2.20274714,151.64,151.63,6.46925897]
[1751254393573,7.47654714,151.64,151.63,6.46925897]
[1751254393769,5.2738,151.64,151.63,6.46925897]
[1751254393974,7.47654714,151.64,151.63,6.46925897]
[1751254394175,5.2738,151.64,151.63,6.46925897]
[1751254394376,7.47654714,151.64,151.63,6.46925897]
[1751254394582,5.2738,151.64,151.63,6.46925897]
[1751254394778,7.47654714,151.64,151.63,6.46925897]
[1751254394979,5.2738,151.64,151.63,6.46925897]
[1751254395181,7.47654714,151.64,151.63,6.46925897]
[1751254395378,5.2738,151.64,151.63,6.46925897]
[1751254395584,7.47654714,151.64,151.63,6.46925897]
[1751254395782,5.2738,151.64,151.63,6.46925897]
[1751254395984,7.47654714,151.64,151.63,6.46925897]
[1751254396184,5.2738,151.64,151.63,6.46925897]
[1751254396385,7.47654714,151.64,151.63,6.46925897]
[1751254396887,5.2738,151.64,151.63,40.90925897]
[1751254397087,7.47654714,151.64,151.63,40.90925897]